Cogmind - Beta 12 @@@ ROGUE MODE // 2023.04.21 @ 21:49:49 Player: btmk16 Result: Destroyed by L-31 Rogue with Katana Performance ------------- Evolutions (1) 500 Regions Visited (6) 1200 Robots Destroyed (44) 220 Value Destroyed (910) 910 Prototype IDs (6) 120 Alien Tech Used (0) 0 Bonus (-36) -36 TOTAL SCORE: 2914 Bonus ------- Follower Combat Kills 87 Friendly Fire -123 Cogmind --------- Core Integrity 0/400 Matter 200/300 Energy 100/100 System Corruption 0% Temperature Cool (0) Movement Core (450) Ox8 Location -8/Mines Parts ------- > --- POWER (1) -------- (None) > --- PROPULSION (3) --- (None) > --- UTILITY (3) ------ Large Storage Unit Hardened Light Armor Plating > --- WEAPON (2) ------- Light Assault Rifle > --- INVENTORY (15) --- Ion Engine Light Treads Wheel Wheel Hardened Light Armor Plating Hardened Light Armor Plating Hardened Light Armor Plating Hardened Light Armor Plating Bomb Drone Bay (16/16) Grenade Launcher Peak State ------------ > --- POWER ------------ Improved Ion Engine > --- PROPULSION ------- Light Treads Light Treads Light Treads > --- UTILITY ---------- Large Storage Unit Seismic Detector Hardened Light Armor Plating > --- WEAPON ----------- Light Assault Rifle Heavy Assault Rifle > --- INVENTORY -------- Light Ion Engine Compact Wheel Improved Heat Sink Hardened Light Armor Plating Hardened Light Armor Plating Hardened Light Armor Plating Hardened Light Armor Plating Hardened Light Armor Plating Hardened Light Armor Plating Bomb Drone Bay Light Assault Rifle Grenade Launcher Grenade Launcher Grenade Launcher [Rating: 15] Favorites ----------- Power Ion Engine Engine Ion Engine Propulsion Light Treads Treads Light Treads Wheel Wheel Utility Large Storage Unit Device Seismic Detector Storage Large Storage Unit Protection Light Armor Plating Weapon Assault Rifle Ballistic Gun Assault Rifle Launcher Grenade Launcher Build | -11 -10 -10 -9 -9 -9 -8 ------- Run | Jun Mat Min Mat Min Exi Min Slots Evolved 2 | . . . 2 . . . Power . | . . . . . . . Propulsion 1 | . . . 1 . . . Utility 1 | . . . 1 . . . Weapon . | . . . . . . . Parts Attached 50 | 9 5 3 15 13 . 5 Power 4 | 2 . . 1 1 . . Engine 4 | 2 . . 1 1 . . Core . | . . . . . . . Reactor . | . . . . . . . Propulsion 16 | 2 . . 6 8 . . Treads 8 | 2 . . 5 1 . . Leg . | . . . . . . . Wheel 8 | . . . 1 7 . . Hover . | . . . . . . . Flight . | . . . . . . . Utility 12 | 2 3 1 3 1 . 2 Device 3 | 1 . . 1 . . 1 Storage 2 | 1 1 . . . . . Processor . | . . . . . . . Hackware . | . . . . . . . Protection 7 | . 2 1 2 1 . 1 Artifact . | . . . . . . . Weapon 18 | 3 2 2 5 3 . 3 Energy Gun . | . . . . . . . Energy Cannon . | . . . . . . . Ballistic Gun 12 | 3 . 2 4 2 . 1 Ballistic Cannon . | . . . . . . . Launcher 6 | . 2 . 1 1 . 2 Special Weapon . | . . . . . . . Impact Weapon . | . . . . . . . Slashing Weapon . | . . . . . . . Piercing Weapon . | . . . . . . . Special Melee Weapon . | . . . . . . . Unidentified Prototypes . | . . . . . . . Parts Lost 16 | . . . . 6 . 10 Power 2 | . . . . 1 . 1 Propulsion 6 | . . . . 3 . 3 Utility 4 | . . . . 1 . 3 Weapon 4 | . . . . 1 . 3 Highest Loss Streak 7 | . . . . 3 . 7 To Critical Strikes . | . . . . . . . Average Slot Usage (%) 98 | . 100 100 99 97 100 90 Engine 11 | . 14 14 11 10 11 9 Treads 22 | . 28 28 30 14 . . Wheel 7 | . . . 2 16 33 27 Device 7 | . 8 . 10 11 11 10 Storage 12 | . 14 14 11 11 11 11 Protection 11 | . 5 14 11 11 11 10 Ballistic Gun 23 | . 28 27 21 21 22 11 Naked Turns . | . . . . . . . Heaviest Build 39 | 15 34 33 37 39 31 33 Greatest Support 60 | 40 40 40 60 60 36 36 Greatest Overweight (x) 10 | . . . 2 10 . . Average Overweight (x) . | . . . . . . . Largest Inventory Capacity 15 | 8 15 15 15 15 15 15 Average Capacity 14 | 6 13 15 15 15 15 15 Most Carried 15 | 7 15 15 15 15 15 15 Average Carried 14 | 4 12 14 14 14 15 11 Final Capacity 15 | 8 15 15 15 15 15 15 Final Carried 15 | 7 15 15 15 15 15 11 Class Distribution -------------------- 54% | Mutant 45% | Scavenger-Mutant Dominant Class ---------------- Mutant | -10/Materials Mutant | -10/Mines Scavenger-Mutant | -9/Materials Scavenger-Mutant | -9/Mines Scavenger-Mutant | -9/Exiles Mutant | -8/Mines Resources | -11 -10 -10 -9 -9 -9 -8 ----------- Run | Jun Mat Min Mat Min Exi Min Matter Collected 1134 | 326 . 112 391 260 . 45 Remotely . | . . . . . . . Salvage Created 1053 | 118 . 95 526 202 . 112 Parts 75 | 5 . 4 48 15 . 3 Haulers Intercepted 1 | . . . 1 . . . Recyclers Shooed 2 | . . . . 2 . . Parts Field Recycled . | . . . . . . . Retrieved Matter . | . . . . . . . Parts Self-Destructed . | . . . . . . . Prevented . | . . . . . . . Kills | -11 -10 -10 -9 -9 -9 -8 ------- Run | Jun Mat Min Mat Min Exi Min Combat Hostiles Destroyed 30 | . . 2 14 6 . 8 Guns 17 | . . 1 11 4 . 1 AOE 13 | . . 1 3 2 . 7 Classes Destroyed 12 | 3 . 1 5 2 . 1 Worker 3 | 1 . 1 1 . . . Builder 2 | . . . . 2 . . Tunneler 3 | 1 . . 2 . . . Hauler 1 | . . . 1 . . . Recycler 1 | 1 . . . . . . Operator 1 | . . . 1 . . . Watcher 2 | . . . 2 . . . Swarmer 13 | . . . 10 . . 3 Grunt 12 | . . 2 2 4 . 4 Duelist 1 | . . . . . . 1 Sentry 2 | . . . 2 . . . Demolisher 1 | . . . . 1 . . Thug 1 | . . . 1 . . . Best Kill Streak 5 | 2 . 2 3 2 . 5 Combat Bots Only 5 | . . 2 3 2 . 5 Max Kills in Single Turn 3 | 1 . 1 3 1 . 2 Gunslinging 1 | . . . 1 . . . Exploded 3 | . . 1 3 1 . 2 Melee . | . . . . . . . Uniques/NPCs Destroyed 1 | . . . . 1 . . YI-UF0 (-9/Mines) Combat | -11 -10 -10 -9 -9 -9 -8 -------- Run | Jun Mat Min Mat Min Exi Min Damage Taken 2563 | . 26 177 771 1045 . 544 Core 473 | . . 56 112 183 . 122 Absorbed by Shields . | . . . . . . . Core Remaining (%) 88 | 100 . 77 . . . . Volleys Fired 128 | 6 1 7 61 25 . 28 Largest 2 | 2 2 2 2 2 . 1 Hottest 60 | 40 40 60 40 43 . 30 Shots Fired 223 | 12 2 14 120 47 . 28 Gun 203 | 12 2 12 118 44 . 15 Cannon . | . . . . . . . Launcher 20 | . . 2 2 3 . 13 Special . | . . . . . . . Kinetic 203 | 12 2 12 118 44 . 15 Thermal . | . . . . . . . Explosive 20 | . . 2 2 3 . 13 Electromagnetic . | . . . . . . . Robot Hit Streak 13 | 2 . 4 12 13 . 12 Robot Miss Streak 5 | 2 2 4 5 2 . 2 Penetration Max . | . . . . . . . Secondary Targets 4 | . . . 4 . . . Max Gunslinging Chain 1 | . . . 1 . . . Shots Hit Robots 139 | 6 . 7 79 30 . 17 Core Hits 83 | 4 . 6 31 18 . 24 Critical Kills . | . . . . . . . Critical Parts Destroyed . | . . . . . . . Critical Strikes . | . . . . . . . Melee Attacks . | . . . . . . . Impact . | . . . . . . . Slashing . | . . . . . . . Piercing . | . . . . . . . Sneak Attacks . | . . . . . . . Combat Hostiles . | . . . . . . . Follow-up Attacks . | . . . . . . . Damage Inflicted 2727 | 90 . 208 1099 392 . 938 Guns 1480 | 90 . 89 922 277 . 102 Cannons . | . . . . . . . Explosions 1234 | . . 119 164 115 . 836 Melee . | . . . . . . . Ramming 13 | . . . 13 . . . Kinetic 1480 | 90 . 89 922 277 . 102 Thermal . | . . . . . . . Explosive 1234 | . . 119 164 115 . 836 Electromagnetic . | . . . . . . . Impact . | . . . . . . . Slashing . | . . . . . . . Piercing . | . . . . . . . Highest Corruption . | . . . . . . . Average Corruption . | . . . . . . . Corruption Purged . | . . . . . . . Corruption Blocked . | . . . . . . . Overload Shots . | . . . . . . . Overflow Damage 32 | . . . . . . 32 Projectiles . | . . . . . . . Explosions 32 | . . . . . . 32 Melee . | . . . . . . . Knockbacks . | . . . . . . . Impact . | . . . . . . . Kinetic . | . . . . . . . Secondary . | . . . . . . . Self-Inflicted Damage 99 | . . 49 5 5 . 40 Shots 6 | . . 2 1 1 . 2 Rammed 2 | . . . 2 . . . Targets Rammed 2 | . . . 2 . . . Kicked . | . . . . . . . Crushed . | . . . . . . . Highest Temperature 29 | . . 27 29 17 . . Average Temperature 7 | . . 14 7 5 . . Received Heat Transfer 360 | . . 90 198 18 . 54 Siege Activations . | . . . . . . . Robots Corrupted . | . . . . . . . Combat Hostiles . | . . . . . . . Parts Fried . | . . . . . . . Impact Corruptions . | . . . . . . . Robots Melted . | . . . . . . . Combat Hostiles . | . . . . . . . Parts Melted . | . . . . . . . Heat Transferred . | . . . . . . . Parts Sabotaged . | . . . . . . . Parts Stolen . | . . . . . . . Parts Stripped . | . . . . . . . Power Chain Reactions . | . . . . . . . Missiles Intercepted . | . . . . . . . Alert | -11 -10 -10 -9 -9 -9 -8 ------- Run | Jun Mat Min Mat Min Exi Min Peak Influence 391 | 15 24 73 391 257 . 150 Initial 141 | . 9 9 . 141 . . Average 111 | 4 17 30 254 95 . 70 Maximum Alert Level 1 | . . . 1 1 . . Low Security (%) 69 | 100 100 100 22 72 . 100 Level 1 30 | . . . 77 27 . . Level 2 . | . . . . . . . Level 3 . | . . . . . . . Level 4 . | . . . . . . . Level 5 . | . . . . . . . High Security . | . . . . . . . Max Security . | . . . . . . . Squads Dispatched 3 | . . 1 2 . . . Investigation . | . . . . . . . Extermination . | . . . . . . . Reinforcement 2 | . . . 2 . . . Assault 1 | . . 1 . . . . Garrison . | . . . . . . . Intercept . | . . . . . . . Searches Triggered . | . . . . . . . Construction Impeded . | . . . . . . . Haulers Reinforced . | . . . . . . . Active Scanning Responses . | . . . . . . . Cargo Convoy Interrupts . | . . . . . . . Stealth | -11 -10 -10 -9 -9 -9 -8 --------- Run | Jun Mat Min Mat Min Exi Min Distress Signals 3 | . . . 3 . . . Communications Jammed . | . . . . . . . Distress Signals . | . . . . . . . Times Spotted 48 | . 2 1 30 6 . 9 Peak Tracking Total 5 | . 1 1 5 2 . 3 Tactical Retreats 2 | . . . 2 . . . Traps | -11 -10 -10 -9 -9 -9 -8 ------- Run | Jun Mat Min Mat Min Exi Min Traps Triggered 1 | . 1 . . . . . Indirectly . | . . . . . . . Trap Hack Attempts . | . . . . . . . Triggered . | . . . . . . . Disarmed 6 | . . . 6 . . . Reprogrammed . | . . . . . . . Reused . | . . . . . . . Traps Extracted . | . . . . . . . Installed . | . . . . . . . Triggered . | . . . . . . . Machines | -11 -10 -10 -9 -9 -9 -8 ---------- Run | Jun Mat Min Mat Min Exi Min Machines Disabled . | . . . . . . . Max in Single Turn . | . . . . . . . Machines Repaired . | . . . . . . . Machines Sabotaged . | . . . . . . . Overloaded Fab Kills . | . . . . . . . Hacking | -11 -10 -10 -9 -9 -9 -8 --------- Run | Jun Mat Min Mat Min Exi Min Machines Accessed 10 | . 3 1 4 . 1 1 Terminals 7 | . 3 . 3 . . 1 Fabricators . | . . . . . . . Repair Stations . | . . . . . . . Recycling Units . | . . . . . . . Scanalyzers 1 | . . . 1 . . . Garrison Access . | . . . . . . . Total Hacks 20 | . 8 1 9 . 1 1 Successful 14 | . 4 1 7 . 1 1 Failed 5 | . 3 . 2 . . . Catastrophic 1 | . 1 . . . . . Database Lockouts 1 | . 1 . . . . . Manual 8 | . 5 . 3 . . . Terminals 17 | . 8 . 8 . . 1 Fabricators . | . . . . . . . Repair Stations . | . . . . . . . Recycling Units . | . . . . . . . Scanalyzers 1 | . . . 1 . . . Garrison Access . | . . . . . . . Terminal Hacks 12 | . 3 1 6 . 1 1 Record 1 | . . . . . 1 . Robot Analysis 3 | . 1 . 2 . . . Prototype ID Bank 3 | . 2 . 1 . . . Open Door 1 | . . 1 . . . . Disarm Traps 2 | . . . 2 . . . Dispatch Records 1 | . . . . . . 1 Hauler Manifests 1 | . . . 1 . . . Fabricator Hacks . | . . . . . . . Repair Station Hacks . | . . . . . . . Recycling Unit Hacks . | . . . . . . . Scanalyzer 1 | . . . 1 . . . Insert Component 1 | . . . 1 . . . Garrison Access Hacks . | . . . . . . . Unauthorized Hacks 1 | . 1 . . . . . Terminals 1 | . 1 . . . . . Botnet 1 | . 1 . . . . . Fabricators . | . . . . . . . Repair Stations . | . . . . . . . Recycling Units . | . . . . . . . Scanalyzers . | . . . . . . . Garrison Access . | . . . . . . . Data Cores Recovered . | . . . . . . . Used . | . . . . . . . Hacking Detections 5 | . 3 . 2 . . . Full Trace Events . | . . . . . . . Feedback Events . | . . . . . . . Feedback Blocked . | . . . . . . . Robot Schematics Acquired . | . . . . . . . Robots Built . | . . . . . . . Authchips . | . . . . . . . Time . | . . . . . . . Total Robot Build Rating . | . . . . . . . Part Schematics Acquired . | . . . . . . . Parts Built . | . . . . . . . Authchips . | . . . . . . . Time . | . . . . . . . Total Part Build Rating . | . . . . . . . Parts Repaired . | . . . . . . . Time . | . . . . . . . Parts Recycled . | . . . . . . . Recycled Matter . | . . . . . . . Retrieved Matter . | . . . . . . . Retrieved Components . | . . . . . . . Parts Scanalyzed . | . . . . . . . Part Schematics Acquired . | . . . . . . . Parts Damaged . | . . . . . . . Bothacking | -11 -10 -10 -9 -9 -9 -8 ------------ Run | Jun Mat Min Mat Min Exi Min Used RIF Installer . | . . . . . . . Robots Hacked . | . . . . . . . Non-combat . | . . . . . . . Combat . | . . . . . . . Robot Hacks Applied . | . . . . . . . Relay Couplers Released . | . . . . . . . Fabnet Peak Effective % . | . . . . . . . Robots Rewired . | . . . . . . . Allies Hacked . | . . . . . . . Hacks Repelled . | . . . . . . . Allies | -11 -10 -10 -9 -9 -9 -8 -------- Run | Jun Mat Min Mat Min Exi Min Total Allies 1 | . . 1 . . . . Largest Group 1 | . . 1 1 . . . Highest-Rated Group 31 | . . 31 31 . . . Highest-Rated Ally 31 | . . 31 31 . . . Total Orders . | . . . . . . . Ally Attacks 19 | . . . 19 . . . Total Damage 274 | . . . 274 . . . Kills 5 | . . . 5 . . . Allies Corrupted . | . . . . . . . Allies Melted . | . . . . . . . Intel | -11 -10 -10 -9 -9 -9 -8 ------- Run | Jun Mat Min Mat Min Exi Min Robot Analysis Total 3 | . 1 . 2 . . . Derelict Logs Recovered 3 | . . 1 . 2 . . Drone Launches . | . . . . . . . Drone Recoveries . | . . . . . . . Exploration | -11 -10 -10 -9 -9 -9 -8 ------------- Run | Jun Mat Min Mat Min Exi Min Turns Passed 3780 | 105 398 886 1012 1132 115 132 Spaces Moved 2314 | 45 236 534 489 790 134 86 Core 17 | 3 . . . 14 . . Treads 1345 | 42 236 534 373 160 . . Legs . | . . . . . . . Wheels 952 | . . . 116 616 134 86 Hover . | . . . . . . . Flight . | . . . . . . . Fastest Speed 50 | 50 160 160 130 86 86 86 Average Speed 135 | 152 160 160 153 113 86 86 Slowest Speed 550 | 160 160 160 240 550 86 86 Overloaded Moves . | . . . . . . . Propulsion Burnouts . | . . . . . . . Robots Hopped . | . . . . . . . Cave-ins Triggered . | . . . . . . . Exploration Rate (%) 52 | 4 39 98 49 98 52 26 Regions Visited 6 Branch Regions 4 Pre-discovered Areas 1 | . . . . . 1 . Known Exits Taken 1 | . . . 1 . . . Unknown Exits Taken 5 | 1 1 1 . 1 1 . Scrap Searched 2 | . . 1 . 1 . . Spaces Dug 37 | . . 17 . 7 . 13 Terrain Destroyed 115 | . . 17 18 24 . 56 Melee . | . . . . . . . Projectile . | . . . . . . . AOE 115 | . . 17 18 24 . 56 Terrain Rammed . | . . . . . . . Walls Destroyed . | . . . . . . . Machines Disabled . | . . . . . . . Actions | -11 -10 -10 -9 -9 -9 -8 --------- Run | Jun Mat Min Mat Min Exi Min Total 2760 | 65 256 552 653 982 133 119 Wait 223 | . . 6 65 152 . . Move 2308 | 44 235 533 488 789 133 86 Hop . | . . . . . . . Pick Up 25 | 6 10 1 7 1 . . Fast Attach 10 | 7 1 . . 2 . . Attach 11 | . . 1 2 4 . 4 Detach . | . . . . . . . Swap 29 | 2 4 2 13 7 . 1 Drop 24 | . 5 2 15 2 . . Fire 128 | 6 1 7 61 25 . 28 Melee . | . . . . . . . Ram 1 | . . . 1 . . . Kick . | . . . . . . . Crush 1 | . . . 1 . . . Escape Stasis . | . . . . . . . Rewire . | . . . . . . . Trap . | . . . . . . . Miscellaneous . | . . . . . . . Route ------- -11/Junkyard -10/Materials (discovered 2 exits: *Mat / *Min) -10/Mines (discovered 2 exits: *Mat x2) -9/Materials (discovered 3 exits: [*Mat] / *Min x2) -9/Mines (discovered 3 exits: [*Mat x2] / *Exi) -9/Exiles -8/Mines (discovered 1 exit: [*Mat]) History --------- Turn | Location | Event 37 | -11/Junkyard | Discovered new exit (range 16) 106 | -11/Junkyard | Entered Materials 118 | -10/Materials | Central database locked down 300 | -10/Materials | Build established: Mutant 367 | -10/Materials | Discovered new exit (range 10) 405 | -10/Materials | Discovered new exit (range 15) 504 | -10/Materials | Entered Mines 565 | -10/Mines | Discovered new exit (range 9) 632 | -10/Mines | Discovered new exit (range 8) 638 | -10/Mines | Met a Derelict testing a Signal Generator 910 | -10/Mines | Found the Drone Emporium 933 | -10/Mines | Found Prototype Device 1179 | -10/Mines | Learned location of 1 exit from Materials 1390 | -10/Mines | Entered Materials 1390 | -9/Materials | Accompanied by 1 ally 1390 | -9/Materials | Evolved 2 slots: Propulsion x1, Utility x1 1391 | -9/Materials | Identified exit to Mines 1981 | -9/Materials | Discovered new exit (range 16) 2117 | -9/Materials | Build established: Scavenger-Mutant 2292 | -9/Materials | Discovered exit to Mines (range 14) 2359 | -9/Materials | Identified Bomb Drone Bay 2402 | -9/Materials | Entered Mines 2574 | -9/Mines | Discovered new exit (range 8) 2593 | -9/Mines | Learned Materials stockpile data 2604 | -9/Mines | Assembled infested the area 2609 | -9/Mines | Deemed a non-threat by the Exiles lab entrance 2609 | -9/Mines | Discovered new exit (range 5) 2743 | -9/Mines | Met 8R-AWN 2819 | -9/Mines | Core integrity fell below 50% 2847 | -9/Mines | Lost 3 parts (1p1n1w) 2965 | -9/Mines | Destroyed YI-UF0 2995 | -9/Mines | Lost 3 parts (2n1u) 3006 | -9/Mines | Discovered new exit (range 12) 3333 | -9/Mines | Learned Materials interactive machine intel 3534 | -9/Mines | Entered Exiles 3557 | -9/Exiles | Welcomed by 8R-AWN 3570 | -9/Exiles | Met EX-HEX 3593 | -9/Exiles | Met EX-BIN 3607 | -9/Exiles | Met EX-DEC 3612 | -9/Exiles | Learned location of Zion (-7) 3639 | -9/Exiles | Discovered new exit (range 14) 3649 | -9/Exiles | Entered Mines 3685 | -8/Mines | Lost 3 parts (1u2w) 3686 | -8/Mines | Discovered new exit (range 12) 3760 | -8/Mines | Core integrity fell below 20% 3781 | -8/Mines | Destroyed by L-31 Rogue with Katana Last Messages --------------- 03664_ The unstable cave ceiling collapses. 03686_ EXIT=FOUND 03691_ K-01 Serf collects debris. 03732_ T-07 Excavator is excavating. 03734_ G-47 Trooper destroyed. 03739_ The unstable cave ceiling collapses. 03740_ G-47 Trooper destroyed. 03744_ The unstable cave ceiling collapses. 03746_ Hrd. Light Armor Plating destroyed. 03747_ The unstable cave ceiling collapses. 03751_ Wheel destroyed. 03751_ Com. Wheel destroyed. 03752_ L-31 Rogue destroyed. 03754_ The unstable cave ceiling collapses. 03762_ G-47 Trooper destroyed. 03768_ Lgt. Ion Engine destroyed. 03771_ Imp. Heat Sink destroyed. 03772_ The unstable cave ceiling collapses. 03773_ Grenade Launcher destroyed. 03776_ Wheel destroyed. Map ----- +----------------------------------------------------+ | | | | | | | | | ?????????????????????????????????????????????????? | | ?????????????????????????????????????????????????? | | ?????????????????????????????????????????????????? | | ?????????????????????????????????????????????????? | | ?????????????????????????????????????????????????? | | ?????????????????????????????????????????????????? | | ?????????????????????????????????????????????????? | | ?????????????????????????????????????????????????? | | ?????????????????????????????????????????????????? | | ???????????????????????????????#?????????????????? | | ?????????????????????????????## ####?????????????? | | ????????????????????????????# # ##????????????? | | #??????????????????????????? #???????????? | | ##?????????????????????????# #???????????? | | #????????????????????????? ##??????????? | | #????????????????????????# % ???????????? | | #??????????????????????## # % ?????????????? | | ##??????????????????????# ???????????????? | | #???????????????????????# ?????????????????? | | ???????????????????????##= #??????????????????? | | ????????????????????#### l #??????????????????? | | ???????????????????## @ ##??????????????????? | | #################?## ##???????????????????? | | ### ##????????????????????? | | ##?????????????????????? | | ################ ##??????????????????????? | | ???????????????### ###???????????????????????? | | ?????????????????## ##?????????????????????????? | | ??????????????????# #??????????????????????????? | | ###???????????????## #??????????????????????????? | | ??????????## #?????????????????????????? | | ####????????????????# #????????????????????????? | | ????????????????????## ???????????????????????? | | #?????????????????????#####??????????????????????? | | #????????????????????????????????????????????????? | | #????????????????????????????????????????????????? | | #????????????????????????????????????????????????? | | #????????????????????????????????????????????????? | | ##???????????????????????????????????????????????? | | ##??????????????????????????????????????????????? | | #??????????????????????????????????????????????? | | #??????????????????????????????????????????????? | | #??????????????????????????????????????????????? | | ##??????????????????????????????????????????????? | | ##???????????????????????????????????????????????? | | #????????????????????????????????????????????????? | +----------------------------------------------------+ Best States ------------- Heat Dissipation 42 Energy Generation 12 Energy Capacity 265 Matter Stores 300 Matter Capacity 300 Sight Range 16 Terrain Scan Range 16 Terrain Scan Density 10 Armor Coverage 150 Evasion (%) 42 Recoil Reduction 3 Item Schematics ----------------- None Robot Schematics ------------------ None Fabricated ------------ Nothing Alien Tech Used ----------------- None Achievements -------------- None Challenges ------------ None Game ------ Seed HugeAccelerationSplitter Manual? 0 Play Time 00:27:12 Cumulative 649.4 hours Start 2023.04.21 @ 21:23:26 End 2023.04.21 @ 21:49:49 Sessions 1 Manual Loads 0 Difficulty Rogue Special Mode None Game No. 656 Rogue 655 Adventurer 0 Explorer 1 Win Type - Total 31 Types 22/0/6/3/0/0/0/0/0 Lore% 87 Gallery% 92 Achievement% 79 Wizard Run 0 Options --------- ASCII 0 Keyboard 1 Movement Vi Keybinds 0 Fullscreen 1 Font 18/SmallcapsGlow Map View 76x50 Tactical HUD 1 Map Filters NONE Filters NONE Steam 1 RUN: f37a2073-2130-4177-98dd-5ddb640c8b2c